Cogmind - Beta 13 @@@ ROGUE MODE // 2024.04.03 @ 18:36:54 Player: Qethsegol Result: Self-destructed Performance ------------- Evolutions (1) 500 Regions Visited (2) 400 Robots Destroyed (17) 85 Value Destroyed (373) 373 Prototype IDs (1) 20 Alien Tech Used (0) 0 Bonus (0) 0 TOTAL SCORE: 1378 Bonus ------- None Cogmind --------- Core Integrity 307/400 Matter 212/300 Energy 250/250 System Corruption 0% Temperature Cool (9) Movement Core (300) Ox5 Location -9/Materials Parts ------- > --- POWER (1) -------- Ion Engine > --- PROPULSION (3) --- (None) > --- UTILITY (3) ------ Medium Storage Unit Targeting Computer Targeting Computer > --- WEAPON (2) ------- Grenade Launcher > --- INVENTORY (10) --- Cooling System Small Matter Pod (0) Visual Processing Unit ECM Suite Shield Generator Shield Generator Particle Cannon Grenade Launcher Grenade Launcher Peak State ------------ > --- POWER ------------ Ion Engine > --- PROPULSION ------- Aluminum Leg Aluminum Leg Aluminum Leg > --- UTILITY ---------- Medium Storage Unit Targeting Computer Targeting Computer > --- WEAPON ----------- Improved Assault Rifle Grenade Launcher > --- INVENTORY -------- Cooling System Small Matter Pod Visual Processing Unit ECM Suite Shield Generator Shield Generator Particle Cannon Grenade Launcher Grenade Launcher [Rating: 12] Favorites ----------- Power Ion Engine Engine Ion Engine Propulsion Aluminum Leg Leg Aluminum Leg Utility Targeting Computer Device Heat Sink Storage Medium Storage Unit Processor Targeting Computer Weapon Grenade Launcher Energy Gun EM Pulse Gun Ballistic Gun Light Assault Rifle Launcher Grenade Launcher Build | -11 -10 -9 ------- Run | Yrd Mat Mat Slots Evolved 2 | . . 2 Power . | . . . Propulsion 1 | . . 1 Utility 1 | . . 1 Weapon . | . . . Parts Attached 16 | 7 6 3 Power 2 | 1 1 . Engine 2 | 1 1 . Core . | . . . Reactor . | . . . Propulsion 3 | 2 . 1 Treads . | . . . Leg 3 | 2 . 1 Wheel . | . . . Hover . | . . . Flight . | . . . Utility 5 | 1 3 1 Device 1 | 1 . . Storage 1 | . . 1 Processor 3 | . 3 . Hackware . | . . . Protection . | . . . Artifact . | . . . Weapon 6 | 3 2 1 Energy Gun 1 | 1 . . Energy Cannon . | . . . Ballistic Gun 3 | 2 . 1 Ballistic Cannon . | . . . Launcher 2 | . 2 . Special Weapon . | . . . Impact Weapon . | . . . Slashing Weapon . | . . . Piercing Weapon . | . . . Special Melee Weapon . | . . . Unidentified Prototypes 1 | . . 1 Parts Lost 2 | . 1 1 Power . | . . . Propulsion 1 | . . 1 Utility 1 | . 1 . Weapon . | . . . Highest Loss Streak 1 | . 1 1 To Critical Strikes . | . . . Average Slot Usage (%) 96 | . 95 98 Engine 13 | . 14 11 Leg 29 | . 28 31 Storage 3 | . . 11 Processor 22 | . 22 22 Energy Gun 3 | . 4 . Ballistic Gun 3 | . 4 1 Launcher 18 | . 18 20 Naked Turns . | . . . Heaviest Build 21 | 7 11 21 Greatest Support 30 | 20 20 30 Greatest Overweight (x) 2 | . . 2 Average Overweight (x) . | . . . Largest Inventory Capacity 10 | 5 5 10 Average Capacity 6 | 5 5 9 Most Carried 9 | 2 5 9 Average Carried 4 | . 4 6 Final Capacity 10 | 5 5 10 Final Carried 9 | 2 5 9 Class Distribution -------------------- 100% | Mutant Dominant Class ---------------- Mutant | -10/Materials Mutant | -9/Materials Resources | -11 -10 -9 ----------- Run | Yrd Mat Mat Matter Collected 382 | 274 67 41 Remotely . | . . . Salvage Created 373 | 50 135 188 Parts 32 | 2 12 18 Haulers Intercepted . | . . . Recyclers Shooed . | . . . Parts Field Recycled . | . . . Retrieved Matter . | . . . Parts Self-Destructed . | . . . Prevented . | . . . Kills | -11 -10 -9 ------- Run | Yrd Mat Mat Combat Hostiles Destroyed 12 | 1 3 8 Guns 4 | 1 3 . AOE 8 | . . 8 Classes Destroyed 5 | 1 1 3 Worker 2 | . . 2 Watcher 3 | . 1 2 Swarmer 4 | . . 4 Grunt 7 | 1 3 3 Sentry 1 | . . 1 Best Kill Streak 10 | 1 3 10 Combat Bots Only 8 | 1 3 8 Max Kills in Single Turn 3 | 1 1 3 Gunslinging . | . . . Exploded 2 | . . 2 Melee . | . . . Uniques/NPCs Destroyed . | . . . Combat | -11 -10 -9 -------- Run | Yrd Mat Mat Hostile Shots Fired 54 | 2 26 26 Missed 20 | . 10 10 Damage Taken 591 | 22 176 393 Core 103 | . 10 93 Absorbed by Shields . | . . . Core Remaining (%) 98 | 100 96 . Volleys Fired 27 | 2 14 11 Largest 2 | 2 2 1 Hottest 60 | 40 60 30 Shots Fired 42 | 4 27 11 Gun 28 | 4 24 . Cannon . | . . . Launcher 14 | . 3 11 Special . | . . . Kinetic 16 | 4 12 . Thermal . | . . . Explosive 14 | . 3 11 Electromagnetic 12 | . 12 . Robot Hit Streak 9 | 3 9 2 Robot Miss Streak 2 | . 2 1 Penetration Max . | . . . Secondary Targets 1 | . 1 . Max Gunslinging Chain 1 | . 1 . Shots Hit Robots 22 | 3 17 2 Core Hits 29 | 2 7 20 Critical Kills . | . . . Critical Parts Destroyed . | . . . Critical Strikes . | . . . Melee Attacks . | . . . Impact . | . . . Slashing . | . . . Piercing . | . . . Sneak Attacks . | . . . Combat Hostiles . | . . . Follow-up Attacks . | . . . Damage Inflicted 867 | 25 195 647 Guns 202 | 25 177 . Cannons . | . . . Explosions 665 | . 18 647 Melee . | . . . Ramming . | . . . Kinetic 80 | 25 55 . Thermal . | . . . Explosive 665 | . 18 647 Electromagnetic 122 | . 122 . Impact . | . . . Slashing . | . . . Piercing . | . . . Highest Corruption 2 | . 2 . Average Corruption 2 | . 2 . Corruption Purged . | . . . Corruption Blocked . | . . . Overload Shots . | . . . Overflow Damage 19 | . . 19 Projectiles . | . . . Explosions 19 | . . 19 Melee . | . . . Knockbacks . | . . . Impact . | . . . Kinetic . | . . . Secondary . | . . . Self-Inflicted Damage 93 | . . 93 Shots 4 | . . 4 Rammed . | . . . Targets Rammed . | . . . Kicked . | . . . Crushed . | . . . Highest Temperature 150 | 6 150 4 Average Temperature 66 | 6 75 2 Received Heat Transfer 198 | 12 96 90 Siege Activations . | . . . Robots Corrupted . | . . . Combat Hostiles . | . . . Parts Fried 1 | . 1 . Impact Corruptions . | . . . Robots Melted . | . . . Combat Hostiles . | . . . Parts Melted . | . . . Heat Transferred . | . . . Parts Sabotaged . | . . . Parts Stolen . | . . . Parts Stripped . | . . . Power Chain Reactions . | . . . Alert | -11 -10 -9 ------- Run | Yrd Mat Mat Peak Influence 337 | 20 135 337 Initial 13 | . 13 4 Average 70 | 5 83 82 Maximum Alert Level 1 | . . 1 Low Security (%) 95 | 100 100 82 Level 1 4 | . . 17 Level 2 . | . . . Level 3 . | . . . Level 4 . | . . . Level 5 . | . . . High Security . | . . . Max Security . | . . . Squads Dispatched 2 | . 1 1 Investigation 1 | . 1 . Extermination . | . . . Reinforcement 1 | . . 1 Assault . | . . . Garrison . | . . . Intercept . | . . . Searches Triggered . | . . . Construction Impeded 1 | . . 1 Haulers Reinforced . | . . . Active Scanning Responses . | . . . Cargo Convoy Interrupts . | . . . Stealth | -11 -10 -9 --------- Run | Yrd Mat Mat Distress Signals . | . . . Communications Jammed . | . . . Distress Signals . | . . . Times Spotted 23 | 1 8 14 Peak Tracking Total 4 | 1 4 4 Tactical Retreats 2 | . 1 1 Traps | -11 -10 -9 ------- Run | Yrd Mat Mat Traps Triggered 2 | . 2 . Indirectly . | . . . Trap Hack Attempts . | . . . Triggered . | . . . Disarmed . | . . . Reprogrammed . | . . . Reused . | . . . Traps Extracted . | . . . Installed . | . . . Triggered . | . . . Machines | -11 -10 -9 ---------- Run | Yrd Mat Mat Machines Disabled . | . . . Max in Single Turn . | . . . Machines Repaired . | . . . Machines Dismantled . | . . . Machines Sabotaged . | . . . Overloaded Fab Kills . | . . . Hacking | -11 -10 -9 --------- Run | Yrd Mat Mat Machines Accessed 4 | . 3 1 Terminals 3 | . 3 . Fabricators . | . . . Repair Stations . | . . . Recycling Units 1 | . . 1 Scanalyzers . | . . . Garrison Access . | . . . Total Hacks 8 | . 5 3 Successful 5 | . 2 3 Failed 3 | . 3 . Catastrophic 1 | . 1 . Database Lockouts . | . . . Manual 1 | . 1 . Terminals 5 | . 5 . Fabricators . | . . . Repair Stations . | . . . Recycling Units 3 | . . 3 Scanalyzers . | . . . Garrison Access . | . . . Terminal Hacks 2 | . 2 . Robot Analysis 1 | . 1 . Locate Traps 1 | . 1 . Fabricator Hacks . | . . . Repair Station Hacks . | . . . Recycling Unit Hacks 3 | . . 3 Process 1 | . . 1 Report Inventory 1 | . . 1 Retrieve Matter 1 | . . 1 Scanalyzer . | . . . Garrison Access Hacks . | . . . Unauthorized Hacks . | . . . Terminals . | . . . Fabricators . | . . . Repair Stations . | . . . Recycling Units . | . . . Scanalyzers . | . . . Garrison Access . | . . . Data Cores Recovered . | . . . Used . | . . . Hacking Detections 3 | . 2 1 Full Trace Events . | . . . Feedback Events . | . . . Feedback Blocked . | . . . Robot Schematics Acquired . | . . . Robots Built . | . . . Authchips . | . . . Time . | . . . Total Robot Build Rating . | . . . Part Schematics Acquired . | . . . Parts Built . | . . . Authchips . | . . . Time . | . . . Total Part Build Rating . | . . . Parts Repaired . | . . . Time . | . . . Parts Recycled . | . . . Recycled Matter 36 | . . 36 Retrieved Matter 36 | . . 36 Retrieved Components . | . . . Parts Scanalyzed . | . . . Part Schematics Acquired . | . . . Parts Damaged . | . . . Bothacking | -11 -10 -9 ------------ Run | Yrd Mat Mat Used RIF Installer . | . . . Robots Hacked . | . . . Non-combat . | . . . Combat . | . . . Robot Hacks Applied . | . . . Relay Couplers Released . | . . . Fabnet Peak Effective % . | . . . Robots Rewired . | . . . Allies Hacked . | . . . Hacks Repelled . | . . . Allies | -11 -10 -9 -------- Run | Yrd Mat Mat Total Allies . | . . . Largest Group . | . . . Highest-Rated Group . | . . . Highest-Rated Ally . | . . . Total Orders . | . . . Ally Attacks . | . . . Total Damage . | . . . Kills . | . . . Allies Corrupted . | . . . Allies Melted . | . . . Intel | -11 -10 -9 ------- Run | Yrd Mat Mat Robot Analysis Total 1 | . 1 . Derelict Logs Recovered . | . . . Drone Launches . | . . . Drone Recoveries . | . . . Exploration | -11 -10 -9 ------------- Run | Yrd Mat Mat Turns Passed 817 | 133 476 208 Spaces Moved 570 | 105 343 122 Core 14 | 14 . . Treads . | . . . Legs 556 | 91 343 122 Wheels . | . . . Hover . | . . . Flight . | . . . Fastest Speed 50 | 50 120 120 Average Speed 119 | 110 120 125 Slowest Speed 260 | 120 120 260 Overloaded Moves . | . . . Propulsion Burnouts . | . . . Robots Hopped . | . . . Cave-ins Triggered . | . . . Exploration Rate (%) 18 | 7 37 12 Regions Visited 2 Branch Regions . Pre-discovered Areas . | . . . Known Exits Taken . | . . . Unknown Exits Taken 2 | 1 1 . Scrap Searched . | . . . Spaces Dug . | . . . Terrain Destroyed 103 | . 15 88 Melee . | . . . Projectile . | . . . AOE 103 | . 15 88 Terrain Rammed . | . . . Walls Destroyed . | . . . Machines Disabled . | . . . Actions | -11 -10 -9 --------- Run | Yrd Mat Mat Total 665 | 115 385 165 Wait 29 | . 6 23 Move 568 | 104 342 122 Hop . | . . . Pick Up 18 | 2 10 6 Fast Attach 8 | 6 2 . Attach 5 | . 3 2 Detach . | . . . Swap 3 | 1 1 1 Drop 7 | . 7 . Fire 27 | 2 14 11 Melee . | . . . Ram . | . . . Kick . | . . . Crush . | . . . Escape Stasis . | . . . Rewire . | . . . Trap . | . . . Miscellaneous . | . . . Route ------- -11/Scrapyard -10/Materials -9/Materials History --------- Turn | Location | Event 2 | -11/Scrapyard | Met Revision 17 84 | -11/Scrapyard | Discovered new exit (range 8) 134 | -11/Scrapyard | Entered Materials 332 | -10/Materials | Build established: Mutant 495 | -10/Materials | Discovered new exit (range 10) 610 | -10/Materials | Entered another Materials area 610 | -9/Materials | Evolved 2 slots: Propulsion x1, Utility x1 818 | -9/Materials | Self-destructed Last Messages --------------- 00784_ Acquired 5 matter. 00785_ Acquired 4 matter. 00787_ Acquired 20 matter. 00790_ Identified Imp. Assault Rifle. 00793_ K-01 Serf collects debris. 00796_ G-34 Mercenary destroyed. 00796_ K-01 Serf collects debris. 00798_ G-34 Mercenary destroyed. 00798_ K-01 Serf destroyed. 00800_ The unstable cave ceiling collapses. 00800_ K-01 Serf crushed by falling debris. 00801_ The unstable cave ceiling collapses. 00801_ Lgt. Assault Rifle crushed. 00801_ Aluminum Leg severed. 00804_ The unstable cave ceiling collapses. 00804_ Aluminum Leg severed. 00809_ The unstable cave ceiling collapses. 00811_ Imp. Assault Rifle severed. 00812_ The unstable cave ceiling collapses. 00817_ Aluminum Leg destroyed. Map ----- +----------------------------------------------------+ | ??????????????????????????????????????# ## # | | ??????????????????????????????????????#!!! ## # | | ??????????????????????????????????????#!! ## # | | ??????????????????????????????????????# ####+# | | ??????????????????????????????????????# + | | ??????????????????????????????????????# ""# | | ??????????????????????????????????????# Y"# | | ??????????????????????????????????????#= ""# | | ???????????????? ?????????? ????????# # | | ????????????????? ????????? ??????######+##+## | | ????????????????? ######??? ????????# # | | ?????????????????# #?? ?????????# # | | ????????????????## ### ?????????# # | | ????????????????? % # ??????????# + | | ?????????????????? * ???????????# # | | ?????????????????? ## #???????????# # | | ??????????????????? ] * #???????????# # | | ??????????????????## ! #########???# # | | ??????????????????## #%* # #???########## | | ??????????????????# ## ### ##?####### | | ??????????????????# #[ ## # # ### ## ## | | ??????????????????# =[* ## #= | | ??????????????????### == ## %+ | | ????????????????????# #### #=* ! | | ????????????????????##[ ## # # # ### | | ?????????????????????# l@/ ## #?? | | ?????????????????????#gg ## ## #?? | | ?????????????????????# ############ # ##?? | | ?????????????????????# #??????????# # #??? | | ?????????????????????# #??????????####### #??? | | ?????????????????????# #????????????????# #??? | | ?????????????????????# #????????????????# #??? | | ?????????????????????# #????????????????# #??? | | ?????????????????????# #????????????????# #??? | | ????????????????????? ????????????????+ +??? | | ????????????????????? ????????????????# #??? | | ????????????????????? T ????????????????# #??? | | ???????????????????? ????????????????# #??? | | ????????????????????# #??????????????? ??? | | ????????????????????###?##????????????????? ??? | | ??????????????????????????????????????????? ???? | | ?????????????????????????????????????????????????? | | ?????????????????????????????????????????????????? | | ?????????????????????????????????????????????????? | | ?????????????????????????????????????????????????? | | ?????????????????????????????????????????????????? | | ?????????????????????????????????????????????????? | | ?????????????????????????????????????????????????? | | ?????????????????????????????????????????????????? | | ?????????????????????????????????????????????????? | +----------------------------------------------------+ Best States ------------- Heat Dissipation 35 Energy Generation 10 Energy Capacity 250 Matter Stores 300 Matter Capacity 300 Sight Range 16 Terrain Scan Density 10 Evasion (%) 55 Targeting Accuracy 10 Item Schematics ----------------- None Robot Schematics ------------------ None Fabricated ------------ Nothing Alien Tech Used ----------------- None Achievements -------------- None Challenges ------------ None Game ------ Seed DynamicArcScreen Manual? 0 Play Time 00:21:17 Cumulative 2.1 hours Start 2024.04.03 @ 18:11:13 End 2024.04.03 @ 18:36:54 Sessions 2 Manual Loads 0 Difficulty Rogue Special Mode None Game No. 3 Rogue 3 Adventurer 0 Explorer 0 Win Type - Total 0 Types 0/0/0/0/0/0/0/0/0 Lore% 2 Gallery% 4 Achievement% 17 Wizard Run 0 Options --------- Layout 0 ASCII 1 Keyboard 1 Movement Numpad Keybinds 0 Fullscreen 1 Font 18/SmallcapsGlow Map View 76x50 Zoom Use 0% Tactical HUD 1 Map Filters NONE Filters NONE Steam 1 RUN: 6ed5b3df-9937-4559-ad7c-7dab5ef6dcc2